[Event "*** Titled Tuesday Blitz"]
[Site "Chess.com"]
[Date "2021.03.30"]
[Round "9"]
[White "DenLaz"]
[Black "Rodalquilar"]
[Result "1-0"]
[WhiteElo "2848"]
[BlackElo "2666"]
[TimeControl "180+1"]
[EndTime "11:46:59 PDT"]
[Termination "DenLaz won on time"]

1. d4 {[%clk 0:03:00.6]} 1... d5 {[%clk 0:03:00]} 2. c4 {[%clk 0:03:01.2]} 2...
e6 {[%clk 0:03:00.6]} 3. Nf3 {[%clk 0:03:01.9]} 3... Nf6 {[%clk 0:03:00.7]} 4.
Nc3 {[%clk 0:03:02.1]} 4... a6 {[%clk 0:03:00.7]} 5. cxd5 {[%clk 0:03:02.2]}
5... exd5 {[%clk 0:03:01.6]} 6. Bg5 {[%clk 0:03:02.7]} 6... Be6 {[%clk 0:03:02]}
7. e3 {[%clk 0:03:03.2]} 7... Nbd7 {[%clk 0:03:02.5]} 8. Bd3 {[%clk 0:03:03.6]}
8... Bd6 {[%clk 0:03:02.8]} 9. O-O {[%clk 0:03:01.3]} 9... c6 {[%clk 0:03:02.9]}
10. Bf4 {[%clk 0:03:01.1]} 10... Qc7 {[%clk 0:03:01.3]} 11. Bxd6 {[%clk
0:02:59.9]} 11... Qxd6 {[%clk 0:03:02.2]} 12. h3 {[%clk 0:02:55.6]} 12... h6
{[%clk 0:03:02.1]} 13. Qc2 {[%clk 0:02:42.7]} 13... g5 {[%clk 0:03:01.9]} 14.
Ne2 {[%clk 0:02:43.1]} 14... Rg8 {[%clk 0:02:47.5]} 15. Nh2 {[%clk 0:02:36.2]}
15... h5 {[%clk 0:02:43.8]} 16. b4 {[%clk 0:02:31.5]} 16... h4 {[%clk
0:02:25.7]} 17. f3 {[%clk 0:02:19.3]} 17... Nh5 {[%clk 0:02:19.9]} 18. Ng4
{[%clk 0:02:17]} 18... Ng3 {[%clk 0:02:05]} 19. Nxg3 {[%clk 0:02:15.7]} 19...
hxg3 {[%clk 0:01:59.1]} 20. a4 {[%clk 0:01:58.1]} 20... Rf8 {[%clk 0:01:46.3]}
21. b5 {[%clk 0:01:51.6]} 21... f5 {[%clk 0:01:28.9]} 22. Nh6 {[%clk 0:01:29.2]}
22... f4 {[%clk 0:01:22.9]} 23. exf4 {[%clk 0:01:26.4]} 23... gxf4 {[%clk
0:01:05.7]} 24. Rfe1 {[%clk 0:01:21.4]} 24... Kd8 {[%clk 0:01:06.1]} 25. bxc6
{[%clk 0:01:20.7]} 25... bxc6 {[%clk 0:01:05.7]} 26. Rac1 {[%clk 0:00:57.7]}
26... Rc8 {[%clk 0:01:03.6]} 27. Bxa6 {[%clk 0:00:55.2]} 27... Rc7 {[%clk
0:01:04.1]} 28. Qg6 {[%clk 0:00:46.3]} 28... Rf6 {[%clk 0:01:03.2]} 29. Qg5
{[%clk 0:00:45.9]} 29... Ra7 {[%clk 0:00:51.8]} 30. Bf1 {[%clk 0:00:42.5]} 30...
Rxa4 {[%clk 0:00:48.1]} 31. Ng4 {[%clk 0:00:33.2]} 31... Bxg4 {[%clk 0:00:47.7]}
32. Qxg4 {[%clk 0:00:34.1]} 32... Rxd4 {[%clk 0:00:43.5]} 33. Qh5 {[%clk
0:00:32.3]} 33... Rd2 {[%clk 0:00:36.7]} 34. Qe8+ {[%clk 0:00:25.6]} 34... Kc7
{[%clk 0:00:36.4]} 35. Re7 {[%clk 0:00:22.7]} 35... Rb2 {[%clk 0:00:25.5]} 36.
Ra1 {[%clk 0:00:21.6]} 36... Rb8 {[%clk 0:00:11.4]} 37. Rxd7+ {[%clk 0:00:18.7]}
37... Qxd7 {[%clk 0:00:09.7]} 38. Ra7+ {[%clk 0:00:18.5]} 1-0

[Event "*** Titled Tuesday Blitz"]
[Site "Chess.com"]
[Date "2021.03.30"]
[Round "9"]
[White "GMHess"]
[Black "LawrenceTrent"]
[Result "1-0"]
[WhiteElo "2759"]
[BlackElo "2558"]
[TimeControl "180+1"]
[EndTime "11:46:59 PDT"]
[Termination "GMHess won by resignation"]

1. b3 {[%clk 0:03:00.9]} 1... a5 {[%clk 0:02:59.1]} 2. c4 {[%clk 0:02:59.8]}
2... e6 {[%clk 0:02:54.6]} 3. Nc3 {[%clk 0:02:59.8]} 3... Nf6 {[%clk 0:02:52.3]}
4. Bb2 {[%clk 0:02:58.6]} 4... d5 {[%clk 0:02:52.1]} 5. cxd5 {[%clk 0:02:57.6]}
5... exd5 {[%clk 0:02:50.3]} 6. d4 {[%clk 0:02:56.9]} 6... a4 {[%clk 0:02:41.8]}
7. Nf3 {[%clk 0:02:50.1]} 7... c6 {[%clk 0:02:33.5]} 8. bxa4 {[%clk 0:02:43.1]}
8... Bb4 {[%clk 0:02:31.7]} 9. Qb3 {[%clk 0:02:34.5]} 9... Qa5 {[%clk
0:02:21.4]} 10. a3 {[%clk 0:02:31.8]} 10... Bxc3+ {[%clk 0:02:21.6]} 11. Bxc3
{[%clk 0:02:25.5]} 11... Qxa4 {[%clk 0:02:21.1]} 12. Qxa4 {[%clk 0:02:21.6]}
12... Rxa4 {[%clk 0:02:22]} 13. e3 {[%clk 0:02:22.3]} 13... Bf5 {[%clk
0:02:10.8]} 14. Be2 {[%clk 0:02:18.9]} 14... Nbd7 {[%clk 0:02:10.4]} 15. Bd1
{[%clk 0:02:14.1]} 15... Ra7 {[%clk 0:02:09.2]} 16. Bb4 {[%clk 0:01:54]} 16...
Bd3 {[%clk 0:01:59.3]} 17. Nd2 {[%clk 0:01:33.3]} 17... b6 {[%clk 0:01:53.9]}
18. Rc1 {[%clk 0:01:33.4]} 18... Bb5 {[%clk 0:01:20.4]} 19. g4 {[%clk
0:01:17.3]} 19... Kd8 {[%clk 0:01:11.6]} 20. g5 {[%clk 0:01:11.5]} 20... Ne8
{[%clk 0:01:07.2]} 21. Bg4 {[%clk 0:01:05.3]} 21... Nc7 {[%clk 0:01:05]} 22. Nf3
{[%clk 0:01:02.3]} 22... Ne6 {[%clk 0:00:52.1]} 23. Kd2 {[%clk 0:00:54.7]} 23...
Re8 {[%clk 0:00:44.8]} 24. Bd6 {[%clk 0:00:43.1]} 24... Ndf8 {[%clk 0:00:18.6]}
25. h4 {[%clk 0:00:30.7]} 25... f6 {[%clk 0:00:14.5]} 26. Rc3 {[%clk 0:00:23.4]}
26... Rd7 {[%clk 0:00:11.9]} 27. Bxf8 {[%clk 0:00:18.6]} 27... Nxf8 {[%clk
0:00:12.3]} 28. Bxd7 {[%clk 0:00:17.7]} 28... Nxd7 {[%clk 0:00:13.2]} 29. Rb1
{[%clk 0:00:15.6]} 29... Re4 {[%clk 0:00:11.4]} 30. gxf6 {[%clk 0:00:14.8]}
30... gxf6 {[%clk 0:00:11.2]} 31. Rg1 {[%clk 0:00:15]} 31... Re7 {[%clk
0:00:10.2]} 32. Rg8+ {[%clk 0:00:14.9]} 32... Kc7 {[%clk 0:00:10.4]} 33. Rc1
{[%clk 0:00:15.3]} 33... Kb7 {[%clk 0:00:10.7]} 34. Rcg1 {[%clk 0:00:15.4]}
34... c5 {[%clk 0:00:08.5]} 35. R1g7 {[%clk 0:00:15.6]} 35... Re6 {[%clk
0:00:09.1]} 36. Rxh7 {[%clk 0:00:14.5]} 36... c4 {[%clk 0:00:07.3]} 37. Rhg7
{[%clk 0:00:11.9]} 37... Ka7 {[%clk 0:00:05.8]} 38. h5 {[%clk 0:00:11.6]} 38...
f5 {[%clk 0:00:06.3]} 39. Ne5 {[%clk 0:00:11.4]} 39... Rd6 {[%clk 0:00:06.7]}
40. Rxd7+ {[%clk 0:00:10.8]} 40... Bxd7 {[%clk 0:00:07.6]} 41. Rg7 {[%clk
0:00:11.2]} 1-0

[Event "*** Titled Tuesday Blitz"]
[Site "Chess.com"]
[Date "2021.03.30"]
[Round "9"]
[White "Murad_Ibrahimli"]
[Black "Tenamu"]
[Result "1-0"]
[WhiteElo "2816"]
[BlackElo "2480"]
[TimeControl "180+1"]
[EndTime "11:47:00 PDT"]
[Termination "Murad_Ibrahimli won on time"]

1. Nf3 {[%clk 0:03:00.9]} 1... Nf6 {[%clk 0:02:58.7]} 2. g3 {[%clk 0:03:00]}
2... d5 {[%clk 0:02:58.3]} 3. Bg2 {[%clk 0:03:00.4]} 3... c6 {[%clk 0:02:58.9]}
4. O-O {[%clk 0:03:00.8]} 4... Bg4 {[%clk 0:02:59.2]} 5. b3 {[%clk 0:03:01.1]}
5... Nbd7 {[%clk 0:02:59]} 6. Bb2 {[%clk 0:03:01.6]} 6... e6 {[%clk 0:02:59.3]}
7. c4 {[%clk 0:03:02]} 7... Bd6 {[%clk 0:02:59.2]} 8. d3 {[%clk 0:03:02.5]} 8...
O-O {[%clk 0:02:59.1]} 9. Nbd2 {[%clk 0:03:03]} 9... e5 {[%clk 0:02:58.1]} 10.
Qc2 {[%clk 0:03:02.3]} 10... Rc8 {[%clk 0:02:57.4]} 11. a3 {[%clk 0:02:56.7]}
11... a5 {[%clk 0:02:53.8]} 12. Rfe1 {[%clk 0:02:51.3]} 12... Re8 {[%clk
0:02:52.4]} 13. h3 {[%clk 0:02:45]} 13... Bh5 {[%clk 0:02:51.8]} 14. Nh4 {[%clk
0:02:45.3]} 14... Bf8 {[%clk 0:02:48.3]} 15. g4 {[%clk 0:02:39.1]} 15... Bg6
{[%clk 0:02:38.8]} 16. Nxg6 {[%clk 0:02:37.8]} 16... hxg6 {[%clk 0:02:39.7]} 17.
e3 {[%clk 0:02:37.6]} 17... Bd6 {[%clk 0:02:20.2]} 18. Bc3 {[%clk 0:02:34.5]}
18... b6 {[%clk 0:02:15.9]} 19. b4 {[%clk 0:02:33.1]} 19... axb4 {[%clk
0:02:14.2]} 20. axb4 {[%clk 0:02:34]} 20... d4 {[%clk 0:02:13.4]} 21. exd4
{[%clk 0:02:31.5]} 21... exd4 {[%clk 0:02:14.3]} 22. Rxe8+ {[%clk 0:02:31.4]}
22... Qxe8 {[%clk 0:02:13.6]} 23. Bxd4 {[%clk 0:02:31.6]} 23... Bxb4 {[%clk
0:02:14.3]} 24. Nf3 {[%clk 0:02:25.8]} 24... Qf8 {[%clk 0:02:03.5]} 25. Ra7
{[%clk 0:02:20.7]} 25... Ra8 {[%clk 0:01:53.3]} 26. Rxa8 {[%clk 0:02:18.9]}
26... Qxa8 {[%clk 0:01:54.2]} 27. Ne5 {[%clk 0:02:19.1]} 27... Bc5 {[%clk
0:01:49.7]} 28. Bxc6 {[%clk 0:02:15.1]} 28... Qd8 {[%clk 0:00:58.5]} 29. Bxc5
{[%clk 0:02:05.9]} 29... Nxe5 {[%clk 0:00:56.9]} 30. Bxb6 {[%clk 0:01:57.4]}
30... Qxb6 {[%clk 0:00:53.2]} 31. Bg2 {[%clk 0:01:57.1]} 31... Nfd7 {[%clk
0:00:42.7]} 32. c5 {[%clk 0:01:41.2]} 32... Nxc5 {[%clk 0:00:07.3]} 33. d4
{[%clk 0:01:40.8]} 33... Ncd3 {[%clk 0:00:07.8]} 34. dxe5 {[%clk 0:01:39.1]}
34... Nxe5 {[%clk 0:00:08.7]} 35. Qe4 {[%clk 0:01:37.7]} 35... Qc5 {[%clk
0:00:05.2]} 36. Kh2 {[%clk 0:01:34.5]} 36... g5 {[%clk 0:00:05.7]} 37. Qf5
{[%clk 0:01:27.9]} 37... g6 {[%clk 0:00:05.6]} 38. Qe4 {[%clk 0:01:26.9]} 38...
Kg7 {[%clk 0:00:05.2]} 39. Kg1 {[%clk 0:01:25]} 39... Kf6 {[%clk 0:00:04.4]} 40.
Bf1 {[%clk 0:01:24.9]} 40... Qc1 {[%clk 0:00:04.2]} 41. Kg2 {[%clk 0:01:19.3]}
41... Qd2 {[%clk 0:00:04.6]} 42. Qa8 {[%clk 0:01:05.4]} 42... Kg7 {[%clk
0:00:03.7]} 43. Qa1 {[%clk 0:01:04.5]} 43... Qf4 {[%clk 0:00:04]} 44. Qc3 {[%clk
0:00:57.6]} 44... Qe4+ {[%clk 0:00:03.9]} 45. Kg1 {[%clk 0:00:57.4]} 45... f6
{[%clk 0:00:04.5]} 46. Bg2 {[%clk 0:00:57.5]} 46... Qe2 {[%clk 0:00:04.3]} 47.
Qc7+ {[%clk 0:00:56.6]} 47... Kh6 {[%clk 0:00:04]} 48. Qd8 {[%clk 0:00:55.4]}
48... Qe1+ {[%clk 0:00:03.2]} 49. Kh2 {[%clk 0:00:52.8]} 49... Kg7 {[%clk
0:00:01.6]} 50. Qe7+ {[%clk 0:00:52.7]} 50... Kg8 {[%clk 0:00:01.7]} 51. Qxf6
{[%clk 0:00:52.5]} 1-0

[Event "*** Titled Tuesday Blitz"]
[Site "Chess.com"]
[Date "2021.03.30"]
[Round "9"]
[White "mac0504"]
[Black "tsaruk_maks"]
[Result "0-1"]
[WhiteElo "2463"]
[BlackElo "2627"]
[TimeControl "180+1"]
[EndTime "11:47:00 PDT"]
[Termination "tsaruk_maks won on time"]

1. e4 {[%clk 0:03:00.9]} 1... e5 {[%clk 0:02:59.5]} 2. Nf3 {[%clk 0:03:00.9]}
2... Nc6 {[%clk 0:02:56.9]} 3. Bb5 {[%clk 0:03:00]} 3... a6 {[%clk 0:02:56]} 4.
Ba4 {[%clk 0:02:59.8]} 4... Nf6 {[%clk 0:02:56.2]} 5. d3 {[%clk 0:02:59]} 5...
d6 {[%clk 0:02:53.6]} 6. O-O {[%clk 0:02:58.7]} 6... g6 {[%clk 0:02:54.2]} 7. c3
{[%clk 0:02:47.1]} 7... Bg7 {[%clk 0:02:52.7]} 8. Nbd2 {[%clk 0:02:43.5]} 8...
O-O {[%clk 0:02:52]} 9. Re1 {[%clk 0:02:43.5]} 9... Nh5 {[%clk 0:02:33.4]} 10.
Nf1 {[%clk 0:02:39.1]} 10... f5 {[%clk 0:02:31.8]} 11. exf5 {[%clk 0:02:38.9]}
11... Bxf5 {[%clk 0:02:30.2]} 12. d4 {[%clk 0:02:28.5]} 12... exd4 {[%clk
0:02:22.1]} 13. cxd4 {[%clk 0:02:23.3]} 13... Bg4 {[%clk 0:02:10.8]} 14. Qb3+
{[%clk 0:02:15.7]} 14... Kh8 {[%clk 0:02:10.9]} 15. Qxb7 {[%clk 0:02:09.1]}
15... Bxf3 {[%clk 0:02:07.2]} 16. Bxc6 {[%clk 0:02:08.4]} 16... Rb8 {[%clk
0:02:04.4]} 17. Qxa6 {[%clk 0:01:54.3]} 17... Rb6 {[%clk 0:01:50.3]} 18. Qxb6
{[%clk 0:01:54.5]} 18... cxb6 {[%clk 0:01:51.2]} 19. Bxf3 {[%clk 0:01:54.6]}
19... Bxd4 {[%clk 0:01:51.8]} 20. Be3 {[%clk 0:01:27]} 20... Bc5 {[%clk
0:01:35.3]} 21. Bxh5 {[%clk 0:01:12]} 21... gxh5 {[%clk 0:01:34.6]} 22. Rad1
{[%clk 0:01:07.3]} 22... Qf6 {[%clk 0:01:34]} 23. Rd2 {[%clk 0:00:59.9]} 23...
h4 {[%clk 0:01:30]} 24. h3 {[%clk 0:00:57.1]} 24... Qg6 {[%clk 0:01:22.9]} 25.
Bd4+ {[%clk 0:00:49.8]} 25... Kg8 {[%clk 0:01:17.7]} 26. Ne3 {[%clk 0:00:41.6]}
26... h5 {[%clk 0:01:14.4]} 27. Nd5 {[%clk 0:00:37]} 27... Qg5 {[%clk
0:00:52.5]} 28. Bc3 {[%clk 0:00:16.6]} 28... Bxf2+ {[%clk 0:00:29]} 29. Rxf2
{[%clk 0:00:16.6]} 29... Qxd5 {[%clk 0:00:28.5]} 30. Rd2 {[%clk 0:00:07.1]}
30... Qg5 {[%clk 0:00:22.3]} 31. Red1 {[%clk 0:00:02.4]} 31... Rd8 {[%clk
0:00:17.6]} 32. Rd5 {[%clk 0:00:01.4]} 32... Qg6 {[%clk 0:00:15]} 33. Kh1 {[%clk
0:00:01.8]} 33... Kh7 {[%clk 0:00:12.9]} 34. Bd2 {[%clk 0:00:02]} 34... Rg8
{[%clk 0:00:08.8]} 0-1

[Event "*** Titled Tuesday Blitz"]
[Site "Chess.com"]
[Date "2021.03.30"]
[Round "9"]
[White "WisdomGame"]
[Black "zacachess"]
[Result "1-0"]
[WhiteElo "2065"]
[BlackElo "2377"]
[TimeControl "180+1"]
[EndTime "11:47:03 PDT"]
[Termination "WisdomGame won on time"]

1. Nf3 {[%clk 0:03:00.9]} 1... Nf6 {[%clk 0:02:59.7]} 2. g3 {[%clk 0:03:01.8]}
2... g6 {[%clk 0:02:58.8]} 3. Bg2 {[%clk 0:03:01.6]} 3... Bg7 {[%clk 0:02:59.3]}
4. O-O {[%clk 0:03:02.5]} 4... O-O {[%clk 0:02:59.8]} 5. d4 {[%clk 0:03:01.6]}
5... d6 {[%clk 0:03:00]} 6. c4 {[%clk 0:03:01.3]} 6... Nc6 {[%clk 0:02:59.9]} 7.
Nc3 {[%clk 0:03:01.1]} 7... a6 {[%clk 0:03:00.2]} 8. Bg5 {[%clk 0:02:57.6]} 8...
h6 {[%clk 0:02:59.6]} 9. Bd2 {[%clk 0:02:56.8]} 9... Rb8 {[%clk 0:02:54.8]} 10.
Qc1 {[%clk 0:02:53.7]} 10... Kh7 {[%clk 0:02:54.4]} 11. d5 {[%clk 0:02:52.2]}
11... Na5 {[%clk 0:02:52.4]} 12. b3 {[%clk 0:02:51.9]} 12... c5 {[%clk
0:02:52.5]} 13. Qa3 {[%clk 0:02:39.1]} 13... b5 {[%clk 0:02:24.7]} 14. Nxb5
{[%clk 0:02:38.6]} 14... Nxc4 {[%clk 0:02:24.3]} 15. bxc4 {[%clk 0:02:36.1]}
15... axb5 {[%clk 0:02:24.4]} 16. cxb5 {[%clk 0:02:35.4]} 16... Rxb5 {[%clk
0:02:12.2]} 17. Bc3 {[%clk 0:01:54.5]} 17... Nxd5 {[%clk 0:01:56.7]} 18. Bxg7
{[%clk 0:01:55.4]} 18... Kxg7 {[%clk 0:01:57.4]} 19. Qd3 {[%clk 0:01:39]} 19...
Nc7 {[%clk 0:01:48.6]} 20. a4 {[%clk 0:01:37.9]} 20... Rb4 {[%clk 0:01:39.4]}
21. Rfb1 {[%clk 0:01:36.3]} 21... Rxb1+ {[%clk 0:01:23.7]} 22. Rxb1 {[%clk
0:01:36.1]} 22... Ba6 {[%clk 0:01:15.5]} 23. Qc3+ {[%clk 0:01:34.8]} 23... Kg8
{[%clk 0:01:07.3]} 24. e4 {[%clk 0:01:34.4]} 24... e5 {[%clk 0:00:52.2]} 25. Rd1
{[%clk 0:01:32.9]} 25... Be2 {[%clk 0:00:34]} 26. Rd2 {[%clk 0:01:25.6]} 26...
Bxf3 {[%clk 0:00:33.2]} 27. Bxf3 {[%clk 0:01:26.5]} 27... Ne6 {[%clk 0:00:33.6]}
28. Ra2 {[%clk 0:01:25.3]} 28... Nd4 {[%clk 0:00:31.7]} 29. Bd1 {[%clk
0:01:22.9]} 29... Qa8 {[%clk 0:00:30.1]} 30. Qd3 {[%clk 0:01:20.1]} 30... Qa5
{[%clk 0:00:27.3]} 31. Kf1 {[%clk 0:01:17.5]} 31... Rb8 {[%clk 0:00:26.7]} 32.
h4 {[%clk 0:01:14]} 32... h5 {[%clk 0:00:26.2]} 33. g4 {[%clk 0:01:11.9]} 33...
hxg4 {[%clk 0:00:22]} 34. Bxg4 {[%clk 0:01:12.8]} 34... Qd8 {[%clk 0:00:21.3]}
35. Qg3 {[%clk 0:01:09.4]} 35... Rb1+ {[%clk 0:00:17]} 36. Kg2 {[%clk
0:01:08.4]} 36... Qa8 {[%clk 0:00:10.4]} 37. f3 {[%clk 0:01:01]} 37... Rb4
{[%clk 0:00:06.9]} 38. a5 {[%clk 0:01:00.3]} 38... Rb5 {[%clk 0:00:07.2]} 39. a6
{[%clk 0:01:00.4]} 39... Rb6 {[%clk 0:00:07.2]} 40. a7 {[%clk 0:01:00.4]} 40...
Rb7 {[%clk 0:00:07.4]} 41. h5 {[%clk 0:00:59.8]} 41... Rxa7 {[%clk 0:00:07.2]}
42. Rxa7 {[%clk 0:00:57.7]} 42... Qxa7 {[%clk 0:00:08.1]} 43. hxg6 {[%clk
0:00:58.3]} 43... fxg6 {[%clk 0:00:08.5]} 44. Bc8 {[%clk 0:00:57.3]} 44... Kg7
{[%clk 0:00:07]} 45. Qg5 {[%clk 0:00:53.5]} 45... Qf7 {[%clk 0:00:06.4]} 46. Bg4
{[%clk 0:00:50.9]} 46... c4 {[%clk 0:00:05.8]} 47. Qd8 {[%clk 0:00:49]} 47... c3
{[%clk 0:00:03.5]} 48. Qxd6 {[%clk 0:00:48.5]} 48... Qf6 {[%clk 0:00:01.9]} 49.
Qc7+ {[%clk 0:00:48.3]} 1-0

[Event "*** Titled Tuesday Blitz"]
[Site "Chess.com"]
[Date "2021.03.30"]
[Round "9"]
[White "Aleksey_Sorokin"]
[Black "Smirnov_Pavel"]
[Result "0-1"]
[WhiteElo "2777"]
[BlackElo "2900"]
[TimeControl "180+1"]
[EndTime "11:47:04 PDT"]
[Termination "Smirnov_Pavel won by resignation"]

1. d4 {[%clk 0:03:00.9]} 1... Nf6 {[%clk 0:02:59.6]} 2. c4 {[%clk 0:03:00.8]}
2... e6 {[%clk 0:03:00.2]} 3. Nf3 {[%clk 0:03:00.9]} 3... d5 {[%clk 0:03:00.1]}
4. g3 {[%clk 0:03:00.8]} 4... Be7 {[%clk 0:03:00.3]} 5. Bg2 {[%clk 0:03:01.1]}
5... O-O {[%clk 0:03:01]} 6. O-O {[%clk 0:03:01.8]} 6... c6 {[%clk 0:03:01.5]}
7. Qd3 {[%clk 0:03:00.6]} 7... Nbd7 {[%clk 0:02:57.8]} 8. Nc3 {[%clk 0:03:00.6]}
8... b6 {[%clk 0:02:58]} 9. e4 {[%clk 0:03:00.8]} 9... Ba6 {[%clk 0:02:57.9]}
10. b3 {[%clk 0:03:00.9]} 10... dxc4 {[%clk 0:02:55.7]} 11. bxc4 {[%clk
0:03:00.3]} 11... e5 {[%clk 0:02:56.3]} 12. dxe5 {[%clk 0:02:58.7]} 12... Ng4
{[%clk 0:02:55.7]} 13. Bf4 {[%clk 0:02:58]} 13... g5 {[%clk 0:02:55.4]} 14. Rad1
{[%clk 0:02:56.7]} 14... gxf4 {[%clk 0:02:16.9]} 15. Qxd7 {[%clk 0:02:52.2]}
15... Qxd7 {[%clk 0:02:16.8]} 16. Rxd7 {[%clk 0:02:53.1]} 16... Bc5 {[%clk
0:01:54.2]} 17. Bh3 {[%clk 0:02:38.3]} 17... h5 {[%clk 0:01:52.4]} 18. Bxg4
{[%clk 0:01:38]} 18... hxg4 {[%clk 0:01:49.7]} 19. Nd2 {[%clk 0:01:38]} 19...
Rfd8 {[%clk 0:01:42.6]} 20. Rxd8+ {[%clk 0:01:36.4]} 20... Rxd8 {[%clk
0:01:43.1]} 21. Nb3 {[%clk 0:01:35.6]} 21... Bxc4 {[%clk 0:01:36.1]} 22. Rd1
{[%clk 0:01:35.8]} 22... Rxd1+ {[%clk 0:01:29.6]} 23. Nxd1 {[%clk 0:01:36.7]}
23... Bxb3 {[%clk 0:01:24.4]} 24. axb3 {[%clk 0:01:36.2]} 24... fxg3 {[%clk
0:00:25.7]} 25. hxg3 {[%clk 0:01:35.1]} 25... Kf8 {[%clk 0:00:24.7]} 26. Kf1
{[%clk 0:01:26.5]} 26... Ke7 {[%clk 0:00:24.6]} 27. Nb2 {[%clk 0:01:24.4]} 27...
b5 {[%clk 0:00:20.4]} 28. Nd3 {[%clk 0:01:21.2]} 28... Bd4 {[%clk 0:00:20.6]}
29. b4 {[%clk 0:01:21.5]} 29... Ke6 {[%clk 0:00:18.3]} 30. Ke2 {[%clk
0:01:20.2]} 30... Bxe5 {[%clk 0:00:18.1]} 31. Ke3 {[%clk 0:01:15.9]} 31... Bc7
{[%clk 0:00:17.6]} 32. Nf4+ {[%clk 0:01:12.4]} 32... Ke7 {[%clk 0:00:15]} 33.
Nd3 {[%clk 0:01:06.8]} 33... a5 {[%clk 0:00:14.8]} 34. bxa5 {[%clk 0:01:06.8]}
34... Bxa5 {[%clk 0:00:15.2]} 35. Kf4 {[%clk 0:01:04.1]} 35... b4 {[%clk
0:00:14.9]} 36. e5 {[%clk 0:00:57.2]} 36... b3 {[%clk 0:00:14.2]} 37. Kxg4
{[%clk 0:00:48.9]} 37... Bc3 {[%clk 0:00:13.9]} 38. Kf5 {[%clk 0:00:49.2]} 38...
b2 {[%clk 0:00:13.4]} 39. Nxb2 {[%clk 0:00:49.2]} 39... Bxb2 {[%clk 0:00:13.3]}
40. f4 {[%clk 0:00:50.1]} 40... c5 {[%clk 0:00:13.4]} 41. Ke4 {[%clk 0:00:50.6]}
41... c4 {[%clk 0:00:12.8]} 42. g4 {[%clk 0:00:51]} 42... Bc1 {[%clk 0:00:12.4]}
43. f5 {[%clk 0:00:50.6]} 43... c3 {[%clk 0:00:11.8]} 44. Kd3 {[%clk 0:00:49.8]}
44... Bd2 {[%clk 0:00:11.6]} 45. Kc2 {[%clk 0:00:48.6]} 45... Be1 {[%clk
0:00:09.8]} 46. Kd3 {[%clk 0:00:48.8]} 46... Bg3 {[%clk 0:00:08.3]} 47. e6
{[%clk 0:00:47.2]} 47... fxe6 {[%clk 0:00:08.4]} 48. Kxc3 {[%clk 0:00:45.2]}
48... e5 {[%clk 0:00:08.5]} 49. g5 {[%clk 0:00:42.1]} 49... Bh4 {[%clk
0:00:07.3]} 50. g6 {[%clk 0:00:41.8]} 50... Kf6 {[%clk 0:00:06.3]} 51. Kd3
{[%clk 0:00:41.1]} 51... Bg5 {[%clk 0:00:06]} 52. Ke4 {[%clk 0:00:37.3]} 52...
Bh6 {[%clk 0:00:06.1]} 0-1

[Event "*** Titled Tuesday Blitz"]
[Site "Chess.com"]
[Date "2021.03.30"]
[Round "9"]
[White "DanilovVladimir"]
[Black "DFeco"]
[Result "1-0"]
[WhiteElo "2491"]
[BlackElo "2325"]
[TimeControl "180+1"]
[EndTime "11:47:06 PDT"]
[Termination "DanilovVladimir won by resignation"]

1. d4 {[%clk 0:02:25.1]} 1... d5 {[%clk 0:02:59.7]} 2. c4 {[%clk 0:02:23.9]}
2... c6 {[%clk 0:02:57.3]} 3. Nc3 {[%clk 0:02:23.7]} 3... Nf6 {[%clk 0:02:57.2]}
4. cxd5 {[%clk 0:02:23.7]} 4... cxd5 {[%clk 0:02:56.6]} 5. Bf4 {[%clk
0:02:24.2]} 5... Nc6 {[%clk 0:02:56.7]} 6. e3 {[%clk 0:02:24.6]} 6... a6 {[%clk
0:02:56.6]} 7. Bd3 {[%clk 0:02:24.6]} 7... Bg4 {[%clk 0:02:55.9]} 8. f3 {[%clk
0:02:24.9]} 8... Bh5 {[%clk 0:02:55.4]} 9. Nge2 {[%clk 0:02:25.4]} 9... e6
{[%clk 0:02:53.2]} 10. O-O {[%clk 0:02:24.5]} 10... Bd6 {[%clk 0:02:52.5]} 11.
Rc1 {[%clk 0:02:16.2]} 11... O-O {[%clk 0:02:49]} 12. Qd2 {[%clk 0:02:15.9]}
12... Bg6 {[%clk 0:02:47.5]} 13. Bxd6 {[%clk 0:02:13.2]} 13... Qxd6 {[%clk
0:02:46.7]} 14. Nf4 {[%clk 0:02:13.4]} 14... Bxd3 {[%clk 0:02:45.6]} 15. Nxd3
{[%clk 0:02:13.1]} 15... e5 {[%clk 0:02:23.2]} 16. dxe5 {[%clk 0:02:10.8]} 16...
Nxe5 {[%clk 0:02:22.4]} 17. Nxe5 {[%clk 0:02:11]} 17... Qxe5 {[%clk 0:02:22.3]}
18. Rcd1 {[%clk 0:02:11.5]} 18... Rfe8 {[%clk 0:02:20.1]} 19. Rfe1 {[%clk
0:02:11.5]} 19... Rad8 {[%clk 0:02:17.9]} 20. Qd4 {[%clk 0:02:11.4]} 20... Qxd4
{[%clk 0:02:14.2]} 21. Rxd4 {[%clk 0:02:10.6]} 21... b5 {[%clk 0:02:10.4]} 22.
Kf2 {[%clk 0:02:08.3]} 22... Rd7 {[%clk 0:02:05.4]} 23. Red1 {[%clk 0:02:07.7]}
23... Red8 {[%clk 0:02:04.4]} 24. a4 {[%clk 0:02:01.9]} 24... bxa4 {[%clk
0:01:59]} 25. Rxa4 {[%clk 0:02:01.7]} 25... Rd6 {[%clk 0:01:57.6]} 26. Rd2
{[%clk 0:01:59.8]} 26... Kf8 {[%clk 0:01:56.7]} 27. g4 {[%clk 0:01:56.5]} 27...
h6 {[%clk 0:01:55.7]} 28. h4 {[%clk 0:01:55.2]} 28... g5 {[%clk 0:01:55.7]} 29.
hxg5 {[%clk 0:01:50.9]} 29... hxg5 {[%clk 0:01:55.3]} 30. Ne2 {[%clk 0:01:50.7]}
30... Rb6 {[%clk 0:01:47.7]} 31. Nd4 {[%clk 0:01:50.3]} 31... Rdb8 {[%clk
0:01:41.9]} 32. Ra2 {[%clk 0:01:49.7]} 32... Ke8 {[%clk 0:01:37.4]} 33. Ne2
{[%clk 0:01:35.4]} 33... Ke7 {[%clk 0:01:32.8]} 34. Nc3 {[%clk 0:01:34.6]} 34...
Ke6 {[%clk 0:01:30.6]} 35. Na4 {[%clk 0:01:24.9]} 35... Rc6 {[%clk 0:01:25.8]}
36. Nc3 {[%clk 0:01:22]} 36... Rcb6 {[%clk 0:01:25.3]} 37. Ne2 {[%clk
0:01:21.5]} 37... Ke7 {[%clk 0:01:16]} 38. Rc2 {[%clk 0:01:20.8]} 38... Kd7
{[%clk 0:01:12.8]} 39. Nd4 {[%clk 0:01:20.4]} 39... Rc8 {[%clk 0:01:10.2]} 40.
Rxc8 {[%clk 0:01:19]} 40... Kxc8 {[%clk 0:01:10]} 41. b3 {[%clk 0:01:18.5]}
41... Kb7 {[%clk 0:01:07.8]} 42. Kg3 {[%clk 0:01:17.4]} 42... Rd6 {[%clk
0:01:04.1]} 43. Rh2 {[%clk 0:01:16.2]} 43... Nd7 {[%clk 0:00:52.7]} 44. Rh7
{[%clk 0:01:11.9]} 44... Rf6 {[%clk 0:00:43.5]} 45. Rg7 {[%clk 0:01:05.7]} 45...
Nc5 {[%clk 0:00:23]} 46. Rxg5 {[%clk 0:01:04.3]} 46... Rb6 {[%clk 0:00:22.6]}
47. Rxd5 {[%clk 0:01:02.2]} 47... Nxb3 {[%clk 0:00:22.6]} 48. Nxb3 {[%clk
0:00:59.4]} 48... Rxb3 {[%clk 0:00:22.3]} 49. Rd7+ {[%clk 0:00:59.3]} 49... Kc6
{[%clk 0:00:22.2]} 50. e4 {[%clk 0:00:57.3]} 50... a5 {[%clk 0:00:22.4]} 51.
Rxf7 {[%clk 0:00:57.1]} 51... a4 {[%clk 0:00:21.8]} 52. Ra7 {[%clk 0:00:56.9]}
52... a3 {[%clk 0:00:19.8]} 53. g5 {[%clk 0:00:56.7]} 53... Kd6 {[%clk 0:00:20]}
54. Kg4 {[%clk 0:00:55.7]} 54... Ke6 {[%clk 0:00:19.3]} 55. f4 {[%clk
0:00:55.3]} 55... Rc3 {[%clk 0:00:18.1]} 56. Ra6+ {[%clk 0:00:55.1]} 56... Kf7
{[%clk 0:00:17.5]} 57. Kf5 {[%clk 0:00:54.3]} 57... Rc5+ {[%clk 0:00:16.5]} 58.
e5 {[%clk 0:00:54.3]} 58... Rc3 {[%clk 0:00:17]} 59. Ra7+ {[%clk 0:00:53.7]}
59... Kf8 {[%clk 0:00:16.9]} 60. Kf6 {[%clk 0:00:53.9]} 60... a2 {[%clk
0:00:14.2]} 61. Ra8+ {[%clk 0:00:52.4]} 1-0